Cogmind - Beta 14 @@@ ROGUE MODE // 2024.08.25 @ 00:33:00 Player: Olafz Result: Self-destructed Performance ------------- Evolutions (3) 1500 Regions Visited (5) 1000 Robots Destroyed (3) 15 Value Destroyed (30) 30 Prototype IDs (0) 0 Alien Tech Used (0) 0 Bonus (470) 470 TOTAL SCORE: 3015 Bonus ------- Pacifist 470 Cogmind --------- Core Integrity 645/700 Matter 239/300 Energy 100/100 System Corruption 0% Temperature Cool (0) Movement Core (50) Location -7/Lower Caves Parts ------- > --- POWER (1) -------- (None) > --- PROPULSION (4) --- (None) > --- UTILITY (6) ------ Improved Signal Interpreter System Shield > --- WEAPON (2) ------- (None) > --- INVENTORY (5) ---- Improved Signal Interpreter Peak State ------------ > --- POWER ------------ (None) > --- PROPULSION ------- Flight Unit > --- UTILITY ---------- Improved Signal Interpreter System Shield > --- WEAPON ----------- Scythe > --- INVENTORY -------- Improved Signal Interpreter [Rating: 10] Favorites ----------- Power None Propulsion VTOL Module Flight Unit VTOL Module Utility Improved Signal Interpreter Processor Improved Signal Interpreter Hackware System Shield Weapon Scythe Slashing Weapon Scythe Build | -11 -10 -9 -8 -7 -7 ------- Run | Yrd Mat Mat Mat Fac Low Slots Evolved 6 | . . 2 2 2 . Power . | . . . . . . Propulsion 2 | . . . 1 1 . Utility 4 | . . 2 1 1 . Weapon . | . . . . . . Parts Attached 5 | . . 2 3 . . Power . | . . . . . . Engine . | . . . . . . Core . | . . . . . . Reactor . | . . . . . . Propulsion 2 | . . 1 1 . . Treads . | . . . . . . Leg . | . . . . . . Wheel . | . . . . . . Hover . | . . . . . . Flight 2 | . . 1 1 . . Utility 2 | . . 1 1 . . Device . | . . . . . . Storage . | . . . . . . Processor 1 | . . 1 . . . Hackware 1 | . . . 1 . . Protection . | . . . . . . Artifact . | . . . . . . Weapon 1 | . . . 1 . . Energy Gun . | . . . . . . Energy Cannon . | . . . . . . Ballistic Gun . | . . . . . . Ballistic Cannon . | . . . . . . Launcher . | . . . . . . Special Weapon . | . . . . . . Impact Weapon . | . . . . . . Slashing Weapon 1 | . . . 1 . . Piercing Weapon . | . . . . . . Special Melee Weapon . | . . . . . . Unidentified Prototypes . | . . . . . . Parts Lost 3 | . . 1 1 1 . Power . | . . . . . . Propulsion 2 | . . 1 1 . . Utility . | . . . . . . Weapon 1 | . . . . 1 . Highest Loss Streak 2 | . . 1 1 2 . To Critical Strikes . | . . . . . . Average Slot Usage (%) 11 | . . 3 20 23 . Flight 1 | . . 3 . . . Processor 4 | . . . 9 7 . Hackware 3 | . . . 6 7 . Slashing Weapon 2 | . . . 4 7 . Peak Build Rating 10 | . . 3 10 9 . Average Rating 3 | . . . 6 8 . On Entrance 3 | . . . 3 9 6 Naked Turns 110 | . 61 49 . . . Heaviest Build 2 | . . . 2 2 . Greatest Support 4 | 3 3 4 4 3 . Greatest Overweight (x) . | . . . . . . Average Overweight (x) . | . . . . . . Largest Inventory Capacity 5 | 5 5 5 5 5 . Average Capacity 5 | 5 5 5 5 5 . Most Carried 1 | . . 1 1 1 . Average Carried . | . . . 1 1 . Final Capacity 5 | 5 5 5 5 5 5 Final Carried 1 | . . 1 1 1 1 Class Distribution -------------------- 100% | Mutant Dominant Class ---------------- Mutant | -10/Materials Mutant | -9/Materials Mutant | -8/Materials Mutant | -7/Factory Mutant | -7/Lower Caves Resources | -11 -10 -9 -8 -7 -7 ----------- Run | Yrd Mat Mat Mat Fac Low Matter Collected 151 | 151 . . . . . Remotely . | . . . . . . Salvage Created 37 | . . . 37 . . Parts 2 | . . . 2 . . Haulers Intercepted . | . . . . . . Recyclers Shooed . | . . . . . . Parts Field Recycled . | . . . . . . Retrieved Matter . | . . . . . . Parts Self-Destructed . | . . . . . . Prevented . | . . . . . . Kills | -11 -10 -9 -8 -7 -7 ------- Run | Yrd Mat Mat Mat Fac Low Combat Hostiles Destroyed 3 | . . . 3 . . Melee 3 | . . . 3 . . Classes Destroyed 1 | . . . 1 . . Swarmer 3 | . . . 3 . . Best Kill Streak 3 | . . . 3 . . Combat Bots Only 3 | . . . 3 . . Max Kills in Single Turn 1 | . . . 1 . . Gunslinging . | . . . . . . Exploded . | . . . . . . Melee 1 | . . . 1 . . Uniques/NPCs Destroyed . | . . . . . . Combat | -11 -10 -9 -8 -7 -7 -------- Run | Yrd Mat Mat Mat Fac Low Hostile Shots Fired 112 | . 4 44 46 18 . Missed 35 | . . 14 12 9 . Damage Taken 912 | . 60 422 357 73 . Core 800 | . 60 386 299 55 . Absorbed by Shields . | . . . . . . Core Remaining (%) 56 | 100 76 3 45 . . Volleys Fired . | . . . . . . Largest . | . . . . . . Hottest . | . . . . . . Shots Fired . | . . . . . . Gun . | . . . . . . Cannon . | . . . . . . Launcher . | . . . . . . Special . | . . . . . . Kinetic . | . . . . . . Thermal . | . . . . . . Explosive . | . . . . . . Electromagnetic . | . . . . . . Robot Hit Streak . | . . . . . . Robot Miss Streak . | . . . . . . Penetration Max . | . . . . . . Secondary Targets . | . . . . . . Shots Hit Robots 6 | . . . 6 . . Core Hits 5 | . 1 1 3 . . Critical Kills . | . . . . . . Critical Parts Destroyed . | . . . . . . Critical Strikes . | . . . . . . Melee Attacks 12 | . . . 12 . . Impact . | . . . . . . Slashing 12 | . . . 12 . . Piercing . | . . . . . . Sneak Attacks . | . . . . . . Combat Hostiles . | . . . . . . Follow-up Attacks . | . . . . . . Damage Inflicted 242 | . 34 13 195 . . Guns . | . . . . . . Cannons . | . . . . . . Explosions . | . . . . . . Melee 195 | . . . 195 . . Ramming 47 | . 34 13 . . . Kinetic . | . . . . . . Thermal . | . . . . . . Explosive . | . . . . . . Electromagnetic . | . . . . . . Impact . | . . . . . . Slashing 195 | . . . 195 . . Piercing . | . . . . . . Highest Corruption . | . . . . . . Average Corruption . | . . . . . . Corruption Purged . | . . . . . . Corruption Blocked . | . . . . . . Overload Shots . | . . . . . . Overflow Damage 12 | . . . 12 . . Projectiles . | . . . . . . Explosions . | . . . . . . Melee 12 | . . . 12 . . Knockbacks . | . . . . . . Impact . | . . . . . . Kinetic . | . . . . . . Secondary . | . . . . . . Self-Inflicted Damage 23 | . 17 6 . . . Shots . | . . . . . . Rammed 6 | . 3 3 . . . Targets Rammed 6 | . 3 3 . . . Kicked . | . . . . . . Crushed . | . . . . . . Highest Temperature 5 | . . 5 . . . Average Temperature 5 | . . 5 . . . Received Heat Transfer 306 | . 24 177 81 24 . Siege Activations . | . . . . . . Robots Corrupted . | . . . . . . Combat Hostiles . | . . . . . . Parts Fried . | . . . . . . Impact Corruptions . | . . . . . . Robots Melted . | . . . . . . Combat Hostiles . | . . . . . . Parts Melted . | . . . . . . Heat Transferred . | . . . . . . Parts Sabotaged . | . . . . . . Parts Stolen . | . . . . . . Parts Stripped . | . . . . . . Power Chain Reactions . | . . . . . . Alert | -11 -10 -9 -8 -7 -7 ------- Run | Yrd Mat Mat Mat Fac Low Peak Influence 243 | . 134 136 243 120 . Initial 105 | . . 56 57 105 . Average 90 | . 45 83 129 109 . Maximum Alert Level 1 | . . . 1 . . Low Security (%) 93 | 100 100 100 82 100 . Level 1 6 | . . . 17 . . Level 2 . | . . . . . . Level 3 . | . . . . . . Level 4 . | . . . . . . Level 5 . | . . . . . . High Security . | . . . . . . Max Security . | . . . . . . Squads Dispatched 5 | . 1 1 3 . . Investigation 3 | . . 1 2 . . Extermination . | . . . . . . Reinforcement 2 | . 1 . 1 . . Assault . | . . . . . . Garrison . | . . . . . . Intercept . | . . . . . . Searches Triggered . | . . . . . . Construction Impeded . | . . . . . . Haulers Reinforced . | . . . . . . Active Scanning Responses . | . . . . . . Cargo Convoy Interrupts . | . . . . . . Stealth | -11 -10 -9 -8 -7 -7 --------- Run | Yrd Mat Mat Mat Fac Low Distress Signals 3 | . 1 1 1 . . Communications Jammed . | . . . . . . Distress Signals . | . . . . . . Times Spotted 38 | . 8 17 12 1 . Peak Tracking Total 17 | . 4 17 7 1 . Tactical Retreats 5 | . 2 1 2 . . Traps | -11 -10 -9 -8 -7 -7 ------- Run | Yrd Mat Mat Mat Fac Low Traps Triggered 1 | . . 1 . . . Indirectly . | . . . . . . Trap Hack Attempts . | . . . . . . Triggered . | . . . . . . Disarmed . | . . . . . . Reprogrammed . | . . . . . . Reused . | . . . . . . Traps Extracted . | . . . . . . Installed . | . . . . . . Triggered . | . . . . . . Machines | -11 -10 -9 -8 -7 -7 ---------- Run | Yrd Mat Mat Mat Fac Low Machines Disabled . | . . . . . . Max in Single Turn . | . . . . . . Machines Repaired . | . . . . . . Machines Dismantled . | . . . . . . Machines Sabotaged . | . . . . . . Overloaded Fab Kills . | . . . . . . Hacking | -11 -10 -9 -8 -7 -7 --------- Run | Yrd Mat Mat Mat Fac Low Machines Accessed 5 | . 1 1 3 . . Terminals 5 | . 1 1 3 . . Fabricators . | . . . . . . Repair Stations . | . . . . . . Recycling Units . | . . . . . . Scanalyzers . | . . . . . . Garrison Access . | . . . . . . Total Hacks 17 | . 2 4 11 . . Successful 7 | . 2 1 4 . . Failed 10 | . . 3 7 . . Catastrophic 2 | . . . 2 . . Database Lockouts . | . . . . . . Manual 17 | . 2 4 11 . . Terminals 17 | . 2 4 11 . . Fabricators . | . . . . . . Repair Stations . | . . . . . . Recycling Units . | . . . . . . Scanalyzers . | . . . . . . Garrison Access . | . . . . . . Terminal Hacks 2 | . 1 . 1 . . Level Access Points 2 | . 1 . 1 . . Fabricator Hacks . | . . . . . . Repair Station Hacks . | . . . . . . Recycling Unit Hacks . | . . . . . . Scanalyzer . | . . . . . . Garrison Access Hacks . | . . . . . . Unauthorized Hacks 5 | . 1 1 3 . . Terminals 5 | . 1 1 3 . . Botnet 5 | . 1 1 3 . . Fabricators . | . . . . . . Repair Stations . | . . . . . . Recycling Units . | . . . . . . Scanalyzers . | . . . . . . Garrison Access . | . . . . . . Data Cores Recovered . | . . . . . . Used . | . . . . . . Hacking Detections 3 | . . 1 2 . . Full Trace Events 2 | . . . 2 . . Feedback Events . | . . . . . . Feedback Blocked . | . . . . . . Robot Schematics Acquired . | . . . . . . Robots Built . | . . . . . . Authchips . | . . . . . . Time . | . . . . . . Total Robot Build Rating . | . . . . . . Part Schematics Acquired . | . . . . . . Parts Built . | . . . . . . Authchips . | . . . . . . Time . | . . . . . . Total Part Build Rating . | . . . . . . Parts Repaired . | . . . . . . Time . | . . . . . . Parts Recycled . | . . . . . . Recycled Matter . | . . . . . . Retrieved Matter . | . . . . . . Retrieved Components . | . . . . . . Parts Scanalyzed . | . . . . . . Part Schematics Acquired . | . . . . . . Parts Damaged . | . . . . . . Bothacking | -11 -10 -9 -8 -7 -7 ------------ Run | Yrd Mat Mat Mat Fac Low Used RIF Installer . | . . . . . . Robots Hacked . | . . . . . . Non-combat . | . . . . . . Combat . | . . . . . . Robot Hacks Applied . | . . . . . . Relay Couplers Released . | . . . . . . Fabnet Peak Effective % . | . . . . . . Robots Rewired . | . . . . . . Allies Hacked . | . . . . . . Hacks Repelled . | . . . . . . Allies | -11 -10 -9 -8 -7 -7 -------- Run | Yrd Mat Mat Mat Fac Low Total Allies . | . . . . . . Largest Group . | . . . . . . Highest-Rated Group . | . . . . . . Highest-Rated Ally . | . . . . . . Total Orders . | . . . . . . Ally Attacks . | . . . . . . Total Damage . | . . . . . . Kills . | . . . . . . Allies Corrupted . | . . . . . . Allies Melted . | . . . . . . Intel | -11 -10 -9 -8 -7 -7 ------- Run | Yrd Mat Mat Mat Fac Low Robot Analysis Total . | . . . . . . Derelict Logs Recovered . | . . . . . . Drone Launches . | . . . . . . Drone Recoveries . | . . . . . . Exploration | -11 -10 -9 -8 -7 -7 ------------- Run | Yrd Mat Mat Mat Fac Low Turns Passed 262 | 9 61 77 96 19 . Spaces Moved 453 | 18 115 157 125 38 . Core 389 | 18 115 101 117 38 . Treads . | . . . . . . Legs . | . . . . . . Wheels . | . . . . . . Hover . | . . . . . . Flight 64 | . . 56 8 . . Fastest Speed 35 | 50 50 35 40 50 . Average Speed 47 | 50 50 44 49 50 . Slowest Speed 50 | 50 50 50 50 50 . Overloaded Moves . | . . . . . . Propulsion Burnouts . | . . . . . . Robots Hopped 3 | . . 2 1 . . Cave-ins Triggered . | . . . . . . Exploration Rate (%) 15 | 3 29 33 24 3 2 Regions Visited 5 Branch Regions 1 Pre-discovered Areas . | . . . . . . Known Exits Taken 4 | . 1 1 1 1 . Unknown Exits Taken 1 | 1 . . . . . Scrap Searched . | . . . . . . Spaces Dug 1 | . . . 1 . . Terrain Destroyed 1 | . . . 1 . . Melee 1 | . . . 1 . . Projectile . | . . . . . . AOE . | . . . . . . Terrain Rammed . | . . . . . . Walls Destroyed . | . . . . . . Machines Disabled . | . . . . . . Actions | -11 -10 -9 -8 -7 -7 --------- Run | Yrd Mat Mat Mat Fac Low Total 469 | 17 117 160 138 37 . Wait . | . . . . . . Move 442 | 17 114 152 122 37 . Hop 3 | . . 2 1 . . Pick Up 1 | . . 1 . . . Fast Attach 5 | . . 2 3 . . Attach . | . . . . . . Detach . | . . . . . . Swap . | . . . . . . Drop . | . . . . . . Fire . | . . . . . . Melee 12 | . . . 12 . . Ram 6 | . 3 3 . . . Kick . | . . . . . . Crush . | . . . . . . Escape Stasis . | . . . . . . Rewire . | . . . . . . Trap . | . . . . . . Miscellaneous . | . . . . . . Route ------- -11/Scrapyard -10/Materials (discovered 4 exits: *Mat x3 / [*Min]) -9/Materials -8/Materials (discovered 3 exits: *Fac x3) -7/Factory -7/Lower Caves History --------- Turn | Location | Event 3 | -11/Scrapyard | Discovered new exit (range 15) 10 | -11/Scrapyard | Entered Materials 38 | -10/Materials | Identified exit to Materials 42 | -10/Materials | Discovered new exit (range 14) 71 | -10/Materials | Entered another Materials area 71 | -9/Materials | Evolved 2 slots: Utility x2 113 | -9/Materials | Core integrity fell below 50% 138 | -9/Materials | Core integrity fell below 20% 138 | -9/Materials | Discovered new exit (range 15) 148 | -9/Materials | Identified exit to Materials 148 | -9/Materials | Entered another Materials area 148 | -8/Materials | Evolved 2 slots: Propulsion x1, Utility x1 203 | -8/Materials | Identified exit to Factory 239 | -8/Materials | Core integrity fell below 50% 244 | -8/Materials | Entered Factory 244 | -7/Factory | Evolved 2 slots: Propulsion x1, Utility x1 255 | -7/Factory | Discovered new exit (range 16) 263 | -7/Factory | Identified exit to Lower Caves 263 | -7/Factory | Entered Lower Caves 263 | -7/Lower Caves | Self-destructed Last Messages --------------- (86,90) (89,21) (13,80) Map updated. O-24 Administrator: "IFF HANDSHAKE FAILED. SECURING TERMINAL." S-10 Pest destroyed. Critical hit (Burn: +37). Destroyed Flight Unit. S-10 Pest destroyed. Acquired Flight Unit. Flight Unit destroyed. PARAMETERS=PROPULSION+1,UTILITY+1 LOCATION=FACTORY GOAL=ESCAPE EXIT=FOUND ALERT: All DSF locations entering lockdown mode. Scythe destroyed. EXIT=IDENTIFIED: LOWER CAVES LOCATION=LOWER CAVES GOAL=ESCAPE Map ----- +----------------------------------------------------+ | ?????????????????????????????????????????????????? | | ?????????????????????????????????????????????????? | | ?????????????????????????????????????????????????? | | ?????????????????????????????????????????????????? | | ?????????????????????????????????????????????????? | | ?????????????????????????????????????????????????? | | ?????????????????????????????????????????????????? | | ?????????????????????????????????????????????????? | | ?????????????????????????????????????????????????? | | ?????????????????????????????????????????????????? | | ?????????????????????????????????????????????????? | | ?????????????????????????????????????????????????? | | ?????????????????????????????????????????????????? | | ?????????????????????????????????????????????????? | | ?????????????????????????????????????????????????? | | ?????????????????????##"?????????????????????????? | | ????????????????????## "?????????????????????????? | | ????????????????????#" "#?#??????????????????????? | | ????????????????????# "# ??????????????????????? | | ????????????????????# ??????????????????????? | | ???????????????????## ??????????????????????? | | ??????????????????## ??????????????????????? | | ??????????????????? #??????????????????????? | | ????????????????????? ##?????????????????????? | | ??????????????????????# ##????????????????????? | | ???????????????????????# @ #????????????????????? | | ???????????????????????# #???????????????????? | | ???????????????????????# #??????????????????? | | ???????????????????????# ## #?????????????????? | | ??????????????????????? ##? ##?????????????????? | | ??????????????????????? ???? #??????????????????? | | ?????????????????????? ?????#??????????????????? | | ?????????????????????? ????????????????????????? | | ????????????????????? ????????????????????????? | | ????????????????????? ????????????????????????? | | ???????????????????? ????????????????????????? | | ????????????????????# ????????????????????????? | | ????????????????????# # ?????????????????????????? | | ????????????????????### ?????????????????????????? | | ??????????????????????# ?????????????????????????? | | ??????????????????????? ?????????????????????????? | | ?????????????????????????????????????????????????? | | ?????????????????????????????????????????????????? | | ?????????????????????????????????????????????????? | | ?????????????????????????????????????????????????? | | ?????????????????????????????????????????????????? | | ?????????????????????????????????????????????????? | | ?????????????????????????????????????????????????? | | ?????????????????????????????????????????????????? | | ?????????????????????????????????????????????????? | +----------------------------------------------------+ Best States ------------- Heat Dissipation 34 Energy Generation 5 Energy Capacity 100 Matter Stores 274 Matter Capacity 300 Sight Range 16 Terrain Scan Density 10 Evasion (%) 63 Defensive Hacking 10 Item Schematics ----------------- None Robot Schematics ------------------ None Fabricated ------------ Nothing Alien Tech Used ----------------- None Achievements -------------- None Challenges ------------ None Game ------ Seed FieldEtherialNeutralizer Manual? 0 Play Time 00:04:35 Cumulative 248.5 hours Start 2024.08.25 @ 00:25:31 End 2024.08.25 @ 00:33:00 Sessions 1 Manual Loads 0 Difficulty Rogue Special Mode None Game No. 440 Rogue 438 Adventurer 2 Explorer 0 Win Type - Total 11 Types 8/0/1/2/0/0/0/0/0 Lore% 73 Gallery% 68 Achievement% 57 Wizard Run 0 Options --------- Layout 0 ASCII 0 Keyboard 1 Movement Numpad Keybinds 1 Fullscreen 2 Font 18/SmallcapsGlow Map View 76x50 Zoom Use 0% Tactical HUD 1 Map Filters NONE Filters NONE Steam 1 RUN: f8289d86-033e-4cb1-9921-620674686246